[Event "Hungarian U20 Junior-ch Men 2024"]
[Site "Budapest"]
[Date "2024.03.12"]
[Round "2.1"]
[White "Karacsonyi, Gellert"]
[Black "Tancsa, Tamas"]
[Result "1-0"]
[ECO "C55"]
[WhiteElo "2386"]
[BlackElo "2273"]
[Annotator "TA"]
[PlyCount "65"]
[EventDate "2024.03.10"]
[EventCountry "HUN"]
[SourceTitle "playchess.com"]
[Source "ChessBase"]
[SourceQuality "1"]
[TimeControl "40/5400+30:1800+30"]

{[%evp 11,65,8,12,6,12,8,47,19,37,33,47,41,40,22,25,20,18,26,24,15,17,10,55,56,64,56,58,55,63,66,55,52,68,18,111,103,91,108,112,91,177,185,183,190,183,190,234,168,792,779,915,855,5102,939,1131,753]} 1. e4 {[%emt 0:00:35]} e5 {[%emt 0:00:35]} 2. Nf3 {[%emt 0:00:07]} Nc6 {[%emt 0:00:04]} 3. Bc4 {[%emt 0:00:16]} Nf6 {[%emt 0:00:09]} 4. d3 {[%emt 0:00:07]} Be7 {[%emt 0:00:58]} 5. O-O {[%emt 0:00:44]} O-O {[%emt 0:00:39]} 6. Nc3 {[%emt 0:00:05]} d6 {[%emt 0:01:12]} 7. a4 {[%emt 0:00:07]} Be6 {[%emt 0:04:39]} 8. Nd5 {[%emt 0:00:47]} h6 {[%emt 0:09:46]} (8... Bxd5 $5 9. exd5 Nb8 $14 (9... Nb4 10. d4 $14)) 9. Re1 {[%emt 0:06:05] White is slightly better.} Re8 {[%emt 0:03:46]} 10. a5 {[%emt 0:04:15]} a6 {[%emt 0:02:23]} 11. c3 {[%emt 0:00:52]} Bf8 {[%emt 0:01:52]} 12. h3 {[%emt 0:06:49]} Bxd5 {[%emt 0:13:28]} 13. exd5 {[%emt 0:00:23]} Ne7 {[%emt 0:00:08][%cal Oa8b8]} 14. Qb3 {[%emt 0:09:46]} Rb8 {[%emt 0:13:42]} 15. d4 {[%emt 0:05:30]} exd4 {[%emt 0:29:05]} 16. Nxd4 {[%emt 0:00:29]} Nexd5 {[%emt 0:01:52]} 17. Bxh6 {[%emt 0:05:59]} c6 {[%emt 0:01:57]} 18. Bg5 $36 {[%emt 0:03:43][%mdl 2048] [#] aiming for Bxf6. White is more active. White is much more active.} Qd7 {[%emt 0:02:44]} 19. Nf3 {[%emt 0:04:11]} Qc7 {[%emt 0:10:11]} 20. Qa2 {[%emt 0:03:21]} g6 {[%emt 0:00:44]} 21. Red1 {[%emt 0:14:21][%cal Be1d1,Bd1d2,Bd2e2][%mdl 32]} Bg7 {[%emt 0:00:31]} 22. Qb1 {[%emt 0:00:02]} (22. Bb3 $14) 22... Kh8 {[%emt 0:00:33]} (22... Ne4 $11 {keeps the balance.}) 23. Qd3 $16 {[%emt 0:00:43]} b5 {[%emt 0:00:30]} 24. axb6 {[%emt 0:04:54]} Rxb6 {[%emt 0:00:10]} 25. Rd2 {[%emt 0:03:55]} (25. Bxa6 Rxb2 26. Re1 Qa7 $17) 25... Ne4 {[%emt 0:00:51]} (25... Qb8 $16) 26. Re2 $18 {[%emt 0:00:42]} f5 {[%emt 0:00:26]} 27. Bxd5 {[%emt 0:02:02]} (27. Bxa6 $6 Ra8 $14) (27. Rxa6 $6 Rxa6 28. Bxa6 Ra8 $14) 27... cxd5 {[%emt 0:00:01]} 28. Qxd5 {[%emt 0:00:19]} Reb8 {[%emt 0:00:55]} 29. Bc1 {[%emt 0:02:28]} Nxc3 $2 {[%emt 0:00:36]} (29... Qc6 30. Qxc6 Rxc6) 30. bxc3 {[%emt 0:01:42] And now Ra4 would win. White is clearly winning.} Qxc3 {[%emt 0:00:00] [#]} 31. Ra4 $1 {[%emt 0:00:19]} (31. Rea2 Rb1 32. Rxb1 Rxb1 $11) 31... Rb4 {[%emt 0:01:02]} 32. Rxb4 {[%emt 0:00:26]} (32. Bb2 $142 Qc4 33. Qxc4 Rxc4 34. Bxg7+ (34. Rxc4 Bxb2 35. Re6 Ba3 $18) (34. Rxa6 Rxb2 35. Re1 Rbc2 $16) 34... Kxg7 35. Rxc4) 32... Qxb4 {[%emt 0:00:24]} 33. Kh2 {[%emt 0:00:34] Weighted Error Value: White=0.12 (very precise) /Black=0.22 (precise) .  Mistake:       	White=1     	Black=3      Inaccurate:     	White=1     	Black=2      OK:         	White=7     	Black=11     Best:        	White=2     	---} 1-0

[Event "Hungarian U20 Junior-ch Men 2024"]
[Site "Budapest"]
[Date "2024.03.12"]
[Round "2.2"]
[White "Pasti, Aron"]
[Black "Palczert, Matyas"]
[Result "1/2-1/2"]
[ECO "B12"]
[WhiteElo "2373"]
[BlackElo "2297"]
[Annotator "TA"]
[PlyCount "142"]
[EventDate "2024.03.10"]
[EventCountry "HUN"]
[SourceTitle "playchess.com"]
[Source "ChessBase"]
[SourceQuality "1"]
[TimeControl "40/5400+30:1800+30"]

{[%evp 32,142,-85,-90,-27,-100,-90,-91,-98,-217,-227,-226,-198,-190,-209,-241,-97,-101,-114,-104,-99,-112,-109,-137,-131,-126,-125,-150,-138,-122,-127,-134,-106,-120,-118,-105,-115,-125,-123,-116,-70,-103,-100,-99,-99,-100,-68,-62,-56,-66,-60,-63,-66,-238,-194,-204,-181,-182,-176,-484,-469,-445,-195,-415,-59,-58,-58,-58,-8,-8,-8,-8,0,0,0,-8,-8,-8,-8,-8,-8,-8,-8,-8,-8,-8,0,0,0,0,0,0,0,0,0,0,0,0,0,0,0,0,0,0,0,0,0,0,0,0,0,0,0]} 1. e4 {[%emt 0:00:39]} c6 {[%emt 0:01:10]} 2. d4 {[%emt 0:01:12]} d5 {[%emt 0:00:08]} 3. e5 {[%emt 0:00:23]} Bf5 {[%emt 0:00:18]} 4. h4 {[%emt 0:00:03]} h5 {[%emt 0:00:37]} 5. Bd3 {[%emt 0:02:24]} Bxd3 {[%emt 0:02:05]} 6. Qxd3 {[%emt 0:01:15] B12: Caro-Kann (Vorstoß-Variante).} Qa5+ {[%emt 0:00:20]} 7. Nd2 {[%emt 0:02:49]} e6 {[%emt 0:00:49]} 8. c3 {[%emt 0:03:21]} Qa6 {[%emt 0:03:00]} 9. c4 $146 {[%emt 0:03:51]} ({Predecessor:} 9. Qxa6 Nxa6 10. b4 Ne7 11. Nb3 Nf5 12. a4 b6 13. Nf3 Be7 14. Bg5 f6 15. Bf4 {1-0 Kacharava,N (2480)-Akhvlediani,I (2433) GEO-ch 81st Tbilisi 2022 (4)}) 9... c5 {[%emt 0:09:42]} 10. Ngf3 {[%emt 0:20:29]} Nc6 {[%emt 0:07:37]} 11. dxc5 {[%emt 0:11:09]} Bxc5 {[%emt 0:01:50]} 12. O-O {[%emt 0:01:36]} Nh6 {[%emt 0:08:07]} 13. a3 {[%emt 0:15:00]} Ng4 {[%emt 0:08:59]} 14. Rb1 {[%emt 0:12:14]} Ncxe5 {[%emt 0:05:33]} 15. Nxe5 {[%emt 0:01:10]} Nxe5 {[%emt 0:00:06]} 16. Qg3 {[%emt 0:00:33]} Ng4 {[%emt 0:07:45]} (16... Nxc4 $6 17. Qxg7 O-O-O 18. Nxc4 $11) 17. cxd5 {[%emt 0:00:40]} exd5 {[%emt 0:10:05]} ({Vorzuziehen ist} 17... Bb6 $17 18. dxe6 fxe6) 18. Nb3 {[%emt 0:00:26]} (18. b4 $1 $11 {hält das Gleichgewicht.} Bd6 19. Re1+ Kf8 20. Qf3) 18... Bb6 $17 {[%emt 0:03:57]} 19. Re1+ {[%emt 0:00:07]} Kf8 $1 {[%emt 0:00:30]} 20. Be3 {[%emt 0:07:56] [#]} (20. Rf1 $17) 20... Bxe3 $1 $19 {[%emt 0:05:07]} 21. fxe3 {[%emt 0:00:02]} Re8 {[%emt 0:05:22]} 22. Nc5 {[%emt 0:01:24]} Qb5 {[%emt 0:01:45]} 23. Qc7 {[%emt 0:02:53] [#]} Qc6 {[%emt 0:02:13]} (23... Nxe3 $2 24. Nd7+ Kg8 25. Ne5 $18) (23... Rh6 $1 $19 {[%cal Rh6c6] und Schwarz behält klar die Oberhand. Zielt auf ...Rc6 ab.} 24. a4 Qc6 25. Qxc6 Rxc6) 24. Qxc6 $17 {[%emt 0:02:00]} bxc6 {[%emt 0:00:02]} 25. e4 {[%emt 0:00:05]} dxe4 {[%emt 0:00:45]} 26. Nxe4 {[%emt 0:00:58]} Rh6 {[%emt 0:01:00]} 27. Nf2 {[%emt 0:00:04]} Ne3 {[%emt 0:01:32]} 28. Re2 {[%emt 0:01:03]} Nf5 {[%emt 0:00:33]} 29. Rxe8+ {[%emt 0:01:05]} Kxe8 {[%emt 0:00:09]} 30. Rc1 {[%emt 0:00:13]} Re6 {[%emt 0:02:34]} 31. Nd3 {[%emt 0:02:18]} Nxh4 {[%emt 0:01:01]} 32. Nf4 {[%emt 0:01:26]} Rd6 {[%emt 0:00:43]} 33. Nxh5 {[%emt 0:00:28]} Rd2 {[%emt 0:01:10]} 34. g3 {[%emt 0:02:52]} Nf3+ {[%emt 0:00:22]} 35. Kf1 {[%emt 0:00:01]} Rh2 {[%emt 0:03:46]} (35... Rxb2 $17 {Und jetzt ...Rb5 wäre schön.} 36. Rxc6 g6 37. Nf6+ Ke7) 36. Rc3 {[%emt 0:00:17]} Nd4 {[%emt 0:01:15]} 37. g4 {[%emt 0:02:42]} g6 {[%emt 0:00:53]} 38. Re3+ {[%emt 0:00:06]} Kf8 {[%emt 0:01:38]} 39. Nf6 $1 {[%emt 0:00:01]} Kg7 {[%emt 0:00:30]} (39... Rxb2 $2 40. Re8+ Kg7 41. g5 Rb1+ 42. Kg2 $18) 40. Ne8+ {[%emt 0:00:00]} Kh6 {[%emt 0:00:00]} 41. Nd6 {[%emt 0:02:49]} Kg5 {[%emt 0:07:29]} (41... Rxb2 42. Nxf7+ Kg7 43. Re7 $11) 42. b4 $2 {[%emt 0:09:48]} (42. Re4 $15 Nf3 43. Nxf7+ Kh4 44. Re2) 42... Kxg4 {[%emt 0:03:18]} 43. Nxf7 {[%emt 0:00:30]} (43. Re4+ $2 Kf3 44. Ke1 Nb3 $19) 43... Kf4 {[%emt 0:04:23]} 44. Rd3 {[%emt 0:07:35]} Nf3 {[%emt 0:02:04]} 45. Nd6 $2 {[%emt 0:01:02]} (45. Rd6 {war die entscheidende Verteidigung.}) 45... g5 {[%emt 0:01:04]} 46. Rc3 {[%emt 0:00:05]} Rd2 {[%emt 0:10:06]} (46... Ra2 $142 47. Rxc6 Nd2+ (47... Rxa3 48. Rc8 $17) 48. Ke2 g4) 47. Rxc6 $2 {[%emt 0:05:51]} (47. Rc4+ {ist der einzige Weg für Weiss..} Nd4 48. b5 cxb5 49. Nxb5) 47... g4 $2 {[%emt 0:06:08]} ({Besser ist} 47... Rd1+ $19 48. Kf2 Ne5 (48... Rd2+ $2 49. Kf1 $19)) 48. Rc4+ $15 {[%emt 0:02:13]} Ke5 $1 {[%emt 0:02:34]} 49. Nf7+ $1 {[%emt 0:00:54]} Ke6 {[%emt 0:01:01]} ({Günstiger ist} 49... Kf5 $1 $15 50. Nh6+ Kg5) 50. Rxg4 $11 {[%emt 0:02:11]} Nh2+ {[%emt 0:00:10]} ({Viel schwächer wäre} 50... Kxf7 $6 51. Rf4+ Ke7 52. Rxf3 $18) 51. Ke1 {[%emt 0:00:01]} Nf3+ {[%emt 0:00:06]} 52. Kf1 {[%emt 0:00:01]} Nh2+ {[%emt 0:00:37]} (52... Kxf7 53. Rf4+ Ke6 54. Rxf3) 53. Ke1 {[%emt 0:00:00]} Nxg4 {[%emt 0:00:06]} 54. Ng5+ {[%emt 0:00:01]} Kf5 {[%emt 0:00:07]} 55. Kxd2 {[%emt 0:00:02]} Kxg5 {[%emt 0:00:05]} 56. Kd3 {[%emt 0:00:06]} Ne5+ {[%emt 0:01:28]} 57. Kd4 {[%emt 0:00:06]} Kf6 {[%emt 0:01:20]} 58. Kd5 {[%emt 0:00:48]} Nf7 {[%emt 0:00:24]} 59. Kc6 {[%emt 0:00:19]} Nd8+ {[%emt 0:00:52]} 60. Kc7 {[%emt 0:01:08]} Ke7 {[%emt 0:00:32]} 61. b5 {[%emt 0:00:52]} Ne6+ {[%emt 0:00:16]} 62. Kb7 {[%emt 0:01:24]} Nd4 {[%emt 0:00:56]} 63. a4 {[%emt 0:00:08]} Kd6 {[%emt 0:00:15]} 64. Kxa7 {[%emt 0:01:22]} Kc5 {[%emt 0:00:19]} 65. b6 {[%emt 0:00:04]} Nc6+ {[%emt 0:00:15]} 66. Ka6 {[%emt 0:00:04]} Kb4 {[%emt 0:00:25]} 67. b7 {[%emt 0:00:21]} Kxa4 {[%emt 0:00:16]} 68. Kb6 {[%emt 0:00:03]} Nb8 {[%emt 0:00:06]} 69. Kc7 {[%emt 0:00:05]} Na6+ {[%emt 0:00:03]} 70. Kc8 {[%emt 0:00:03]} (70. Kb6 $5 Nb8 $8 71. Kc7 Na6+ 72. Kd6 $11) 70... Ka5 {[%emt 0:00:07]} 71. b8=Q {[%emt 0:00:04]} Nxb8 {[%emt 0:00:02]} 1/2-1/2

[Event "Hungarian U20 Junior-ch Men 2024"]
[Site "Budapest"]
[Date "2024.03.12"]
[Round "2.3"]
[White "Gombocz, Ferenc Jr."]
[Black "Bodrogi, Bendeguz"]
[Result "0-1"]
[ECO "D02"]
[WhiteElo "2351"]
[BlackElo "2316"]
[Annotator "TA"]
[PlyCount "68"]
[EventDate "2024.03.10"]
[EventCountry "HUN"]
[SourceTitle "playchess.com"]
[Source "ChessBase"]
[SourceQuality "1"]
[TimeControl "40/5400+30:1800+30"]

{[%evp 9,67,12,13,0,0,0,0,-10,-6,-12,28,39,25,3,52,0,0,-13,0,-8,-9,-17,16,11,17,30,19,-11,-9,-23,-26,-395,-411,-499,-517,-713,-481,-511,-508,-1150,-1143,-1613,-1468,-1389,-1356,-1741,-1695,-2332,-2005,-2570,-2294,-29990,-29990,-29990,-29991,-29998,-29999,-29999,-29999,-29999]} 1. d4 {[%emt 0:00:35]} d5 {[%emt 0:01:27]} 2. Nf3 {[%emt 0:00:06]} e6 {[%emt 0:01:01]} 3. Bf4 {[%emt 0:00:08]} Bd6 {[%emt 0:00:29]} 4. e3 {[%emt 0:00:11]} Bxf4 {[%emt 0:00:14]} 5. exf4 {[%emt 0:00:03]} Ne7 {[%emt 0:01:07]} 6. h4 {[%emt 0:02:29]} b6 {[%emt 0:02:58]} 7. h5 {[%emt 0:01:55]} h6 {[%emt 0:06:26]} 8. g4 {[%emt 0:01:59] The position is equal.} c5 {[%emt 0:12:25]} 9. c3 {[%emt 0:01:21]} O-O {[%emt 0:00:56]} 10. Na3 {[%emt 0:13:18]} Nbc6 {[%emt 0:15:36]} 11. Qd2 {[%emt 0:05:40]} Qc7 {[%emt 0:15:31]} (11... cxd4 $11 {should be considered.} 12. cxd4 f6) 12. Bd3 {[%emt 0:06:15]} (12. Rg1 $14) 12... f6 $11 {[%emt 0:02:13] Hoping for ...e5.} 13. Nb5 {[%emt 0:14:08]} Qb8 {[%emt 0:00:18] aiming for ...a6.} 14. O-O-O {[%emt 0:01:17]} a6 {[%emt 0:01:16]} 15. Na3 {[%emt 0:00:13]} cxd4 {[%emt 0:11:16]} 16. cxd4 {[%emt 0:01:27]} b5 {[%emt 0:00:56][%cal Bb6b5,Bb5b4][%mdl 32]} 17. Nc2 {[%emt 0:01:57]} b4 {[%emt 0:00:17]} 18. b3 {[%emt 0:01:34]} a5 $1 {[%emt 0:06:00]} 19. Rdg1 $1 {[%emt 0:01:17]} Ba6 {[%emt 0:03:02]} 20. g5 $2 {[%emt 0:02:35][%mdl 8192] [#] This move loses the game for White.} (20. Bxa6 $1 $11 {and White is okay.} Rxa6 21. Nh4) 20... Bxd3 $19 {[%emt 0:02:42]} 21. gxh6 {[%emt 0:03:03]} Be4 {[%emt 0:04:32]} 22. Rxg7+ {[%emt 0:00:25]} Kh8 {[%emt 0:00:07]} 23. Nh4 {[%emt 0:00:14]} Bxh1 {[%emt 0:03:34]} 24. f3 {[%emt 0:09:42]} (24. Ng6+ $142 Nxg6 25. hxg6) 24... Rg8 {[%emt 0:01:01]} 25. Rf7 {[%emt 0:02:14]} Qe8 {[%emt 0:00:55]} 26. Rxf6 {[%emt 0:00:29]} Qxh5 {[%emt 0:00:49]} 27. Qh2 {[%emt 0:00:16]} Bxf3 {[%emt 0:00:19]} 28. Ne1 {[%emt 0:01:09]} Be4 {[%emt 0:00:36]} 29. Rxe6 {[%emt 0:00:44]} Rac8 {[%emt 0:00:55]} 30. f5 {[%emt 0:00:37]} Nxd4+ {[%emt 0:00:21] Black mates.} 31. Kb2 {[%emt 0:00:03] [#]} Rg2+ $3 {[%emt 0:00:59]} 32. Nexg2 {[%emt 0:00:31]} (32. Qxg2 Bxg2) 32... Qe2+ {[%emt 0:00:06]} 33. Ka1 {[%emt 0:00:06]} Qd1+ {[%emt 0:00:10]} 34. Kb2 {[%emt 0:00:06]} Qc1# {[%emt 0:00:05] Weighted Error Value: White=1.43/Black=0.12 (very precise) .  Loses game:     	White=1     	---        Mistake:       	White=2     	Black=1      Inaccurate:     	White=2     	Black=3      OK:         	White=4     	Black=11     Best:        	White=1     	---        Strong:       	White=1     	Black=1} 0-1

[Event "Hungarian U20 Junior-ch Men 2024"]
[Site "Budapest"]
[Date "2024.03.12"]
[Round "2.4"]
[White "Szikszai, Bertalan"]
[Black "Kolimar, Kristof Pal"]
[Result "0-1"]
[ECO "B40"]
[WhiteElo "2312"]
[BlackElo "2282"]
[Annotator "TA"]
[PlyCount "120"]
[EventDate "2024.03.10"]
[EventCountry "HUN"]
[SourceTitle "playchess.com"]
[Source "ChessBase"]
[SourceQuality "1"]
[TimeControl "40/5400+30:1800+30"]

{[%evp 9,120,-14,0,-13,14,0,16,-9,2,-7,15,-31,-22,-24,0,-13,-20,-14,0,-14,-12,-21,-22,-55,-47,-39,0,0,0,-70,121,61,47,65,50,7,277,160,191,160,131,0,22,-68,-63,-69,-68,-57,-79,-58,-67,-64,-12,-10,-12,-13,-14,-189,-95,-101,-93,-83,-95,-84,-103,-79,-91,-102,-82,-71,-41,-208,-175,-228,-202,-195,-186,-191,-188,-310,-82,-176,-175,-184,-189,-197,-184,-175,-181,-484,-480,-464,-470,-549,-529,-944,-972,-3337,-3550,-4710,-2704,-5903,-5501,-29977,-29978,-29978,-29979,-29979,-29980,-29980,-29981,-29979,-29975]} 1. e4 {[%emt 0:00:37]} c5 {[%emt 0:00:36]} 2. Nf3 {[%emt 0:00:10]} e6 {[%emt 0:00:04]} 3. Bd3 {[%emt 0:00:33]} Nc6 {[%emt 0:03:04]} 4. O-O {[%emt 0:00:22]} g5 {[%emt 0:02:59]} 5. c3 {[%emt 0:00:49]} Bg7 {[%emt 0:06:06]} 6. Bb5 {[%emt 0:05:27]} g4 {[%emt 0:05:20]} 7. Ne1 {[%emt 0:00:10]} h5 {[%emt 0:00:40]} 8. Bxc6 {[%emt 0:02:28] The position is equal.} bxc6 {[%emt 0:08:25]} 9. d3 {[%emt 0:06:40]} d6 {[%emt 0:08:17]} 10. f4 {[%emt 0:04:01]} (10. f3 $11 {was preferrable.}) 10... Ne7 $15 {[%emt 0:02:33]} 11. Na3 {[%emt 0:13:50]} Rb8 {[%emt 0:05:23]} 12. Qa4 {[%emt 0:04:33]} Qc7 {[%emt 0:08:21]} 13. Nc4 {[%emt 0:01:34][%cal Oe4e5]} d5 {[%emt 0:05:02]} 14. exd5 {[%emt 0:02:28]} exd5 {[%emt 0:00:16]} 15. f5 $1 {[%emt 0:02:44]} Bh6 {[%emt 0:04:49] Prevents Bf4} 16. f6 {[%emt 0:08:43]} (16. Ne3 {simplifies} f6 17. d4 c4 18. b3) 16... Nf5 {[%emt 0:04:52]} 17. Na5 {[%emt 0:05:30]} Bxc1 {[%emt 0:12:41]} (17... Rxb2 {feels hotter.} 18. Nc2 Bxc1 19. Re1+ Be6) 18. Rxc1 {[%emt 0:00:08]} Rxb2 {[%emt 0:01:23]} 19. Nc2 {[%emt 0:01:49]} (19. Qa3 $1 $11 Rb5 20. Nb3) 19... Rb5 $2 {[%emt 0:05:16] Black is more active.} (19... Rb6 $1 $15 {keeps the upper hand.} 20. Rce1+ Kd8) 20. Nb3 {[%emt 0:01:07]} (20. Rce1+ $16 Kf8 21. Nb3) 20... O-O $14 {[%emt 0:07:47]} 21. Rce1 {[%emt 0:03:25][%mdl 1024] Prevents Re8. White has compensation.} Qd6 {[%emt 0:00:22]} 22. Ne3 {[%emt 0:04:12]} Nh6 {[%emt 0:01:48][%mdl 8192]} (22... Qxf6 $2 23. Nxf5 (23. Nxd5 Qg5 $16) 23... Bxf5 24. Qf4 $18) (22... Nxe3 $1 $11 23. Rxe3 h4) 23. Qa3 {[%emt 0:02:21]} (23. Nxd5 $1 $18 {Strongly threatening Ne7+.} Qxd5 24. c4) 23... Rd8 $16 {[%emt 0:01:57]} 24. Qc1 {[%emt 0:02:53][%cal Oe3g4]} Kh7 {[%emt 0:00:05]} 25. Nc2 {[%emt 0:02:26]} (25. Qc2 $16) 25... Rg8 $11 {[%emt 0:01:09] Black is weak on the dark squares} 26. Re7 {[%emt 0:05:27]} (26. c4 $11 dxc4 27. dxc4) 26... Rg6 {[%emt 0:01:55]} 27. Qf4 {[%emt 0:05:55]} Qxf4 {[%emt 0:00:04]} 28. Rxf4 {[%emt 0:00:04][%cal Oc3c4]} Bf5 {[%emt 0:00:45]} 29. Na3 {[%emt 0:01:10]} Rb6 {[%emt 0:01:40]} 30. Nxc5 {[%emt 0:00:09]} Rb2 {[%emt 0:00:23]} ({Much weaker is} 30... Rxf6 $6 31. Nd7 (31. Rxa7 $2 {loses.} Rb2 $19) 31... Rd6 32. Nxb6 axb6 33. Re1 $11) ({Black should play} 30... g3 $1 $15 31. Rb4 (31. hxg3 Rxg3 32. Nc2 Kg6 $17) 31... gxh2+ (31... Rxf6 32. hxg3 Rxb4 33. cxb4 $11) 32. Kxh2 Rxb4 (32... Rxf6 33. Nc2 $11) 33. cxb4 h4 (33... Rxf6 34. Nc2 $11)) 31. Rf2 $1 {[%emt 0:08:12]} Rxf2 {[%emt 0:00:03]} 32. Kxf2 {[%emt 0:00:05]} Rxf6 {[%emt 0:00:03]} 33. Ke2 {[%emt 0:00:23]} (33. Ke1 $11) 33... h4 {[%emt 0:00:22]} (33... g3 $1 $19 {[%cal Rg3h2]} 34. hxg3 Bg4+ 35. Ke1 Nf5 36. Rxa7 (36. Nd7 $2 Rd6 $19) 36... Nxg3) 34. Nc2 {[%emt 0:00:37][%cal Og2g3]} g3 {[%emt 0:00:39]} 35. hxg3 {[%emt 0:00:19]} Bg4+ {[%emt 0:00:30]} 36. Ke1 {[%emt 0:00:48]} hxg3 {[%emt 0:00:01] Hoping for ...Rf2.} 37. Ne3 {[%emt 0:01:28][%cal Od3d4]} Rf2 {[%emt 0:00:10]} 38. Nxg4 {[%emt 0:02:44]} Nxg4 $17 {[%emt 0:00:02][%mdl 4096] Endgame. KRN-KRN} 39. Re2 {[%emt 0:00:08]} Kg6 {[%emt 0:01:43]} 40. Na6 $2 {[%emt 0:00:00]} (40. d4 $1 $15) 40... Rf6 $19 {[%emt 0:00:00]} 41. Nb4 {[%emt 0:07:04]} (41. Nc5 $142) 41... a5 {[%emt 0:09:14]} 42. Nc2 {[%emt 0:02:05]} Kg5 $1 {[%emt 0:02:38]} 43. Nd4 {[%emt 0:01:24] [#]} a4 $1 {[%emt 0:03:53]} 44. Re8 {[%emt 0:00:00]} (44. Nc2 $142) 44... Nh6 $2 {[%emt 0:06:09]} (44... Rf2 $19 {and Black stays clearly on top.} 45. Re2 c5 46. Nf3+ Kf4) 45. Re3 {[%emt 0:06:03]} (45. Nf3+ $17 Kg6 46. Ra8) 45... Kg4 {[%emt 0:00:41]} 46. Ne2 {[%emt 0:02:03]} Nf5 {[%emt 0:00:08]} 47. Rf3 {[%emt 0:00:15][%cal Oe2g3] [#]} Rh6 $1 {[%emt 0:01:07] ...a3 would now be deadly.} 48. Rf4+ {[%emt 0:08:39]} Kg5 {[%emt 0:00:13]} 49. Rf3 $2 {[%emt 0:00:56]} (49. Rxa4 {was the crucial defense.} Rh1+ 50. Kd2) 49... Rh1+ {[%emt 0:00:30]} 50. Kd2 {[%emt 0:01:19][%cal Of3f5] Black must now prevent Rxf5+!} Ra1 {[%emt 0:01:52]} 51. Nc1 {[%emt 0:04:45]} a3 {[%emt 0:03:21] ...Kg4 is the strong threat.} 52. Kc2 {[%emt 0:00:57]} d4 {[%emt 0:00:42] aiming for ...dxc3.} 53. Kd1 {[%emt 0:02:51]} c5 {[%emt 0:02:32]} 54. cxd4 {[%emt 0:00:30]} cxd4 {[%emt 0:00:08]} 55. Kc2 {[%emt 0:01:47]} Kg4 {[%emt 0:00:10]} 56. Kd2 {[%emt 0:00:38]} Rb1 {[%emt 0:00:36] Black mates.} 57. Ne2 {[%emt 0:00:42]} Rb2+ {[%emt 0:00:19]} 58. Ke1 {[%emt 0:00:15]} Rxa2 {[%emt 0:00:06]} 59. Rf4+ {[%emt 0:00:06]} Kg5 {[%emt 0:00:04]} 60. Re4 {[%emt 0:00:04]} Rb2 {[%emt 0:00:25] Quite a comeback for Black.   Weighted Error Value: White=0.60/Black=0.20 (precise) .  Loses game:     	White=2     	Black=1      Missed win:     	---       	Black=1      Mistake:       	White=10    	Black=3      Inaccurate:     	White=4     	Black=2      OK:         	White=12    	Black=23     Best:        	White=7     	Black=6      Strong:       	White=2     	Black=1} 0-1